bitfinex/quotes_SOLUSD_20220302
["timestamp","ask_amount","ask_price","bid_price","bid_amount"]
[1646251562049,18.779,101.26,101.18,23.4711]
[1646251562249,14.8337,101.23,101.18,23.4711]
[1646251562654,14.8337,101.23,101.15,24.4486]
[1646251563251,14.8337,101.23,101.14,22.5172]
[1646251563252,3.952,101.22,101.14,22.5172]
[1646251563651,14.8381,101.2,101.14,22.5172]
[1646251564051,14.8381,101.2,101.15,58.98521039]
[1646251568956,18.7901,101.2,101.14,22.5172]
[1646251569157,20.5475134,101.2,101.1,5.94333684]
[1646251569358,20.5475134,101.2,101.11,6.0]
[1646251569359,24.0371,101.19,101.11,6.0]
[1646251569556,14.8407,101.17,101.11,6.0]
[1646251569755,21.5107,101.17,101.11,6.0]
[1646251569956,21.5107,101.17,101.12,54.05194083]
[1646251572958,14.8407,101.17,101.12,54.05194083]
[1646251579665,14.8407,101.17,101.12,54.30194083]
[1646251580966,3.954,101.19,101.12,56.55492997]
[1646251581166,28.2308,101.2,101.12,56.55492997]
[1646251581866,28.2308,101.2,101.12,116.15492997]
[1646251582064,14.8384,101.19,101.12,215.78492997]
[1646251582267,14.8384,101.19,101.12,116.15492997]
[1646251584569,14.8384,101.19,101.12,56.55492997]
[1646251585668,3.954,101.2,101.12,215.78492997]
[1646251585869,3.954,101.22,101.13,184.602787]
[1646251586069,3.952,101.23,101.13,230.941887]
[1646251586369,3.952,101.23,101.14,2.54904003]
[1646251586568,3.952,101.23,101.16,46.05442975]
[1646251586769,3.952,101.23,101.16,46.30442975]
[1646251587169,18.785,101.23,101.16,46.30442975]
[1646251587669,41.69823495,101.23,101.16,46.30442975]
[1646251587869,41.69823495,101.23,101.16,46.05442975]
[1646251588072,43.4572503,101.23,101.16,46.05442975]
[1646251589168,55.4572503,101.23,101.16,46.05442975]
[1646251589970,70.2162503,101.23,101.16,46.05442975]
[1646251592372,58.2162503,101.23,101.16,46.05442975]
[1646251595075,70.2162503,101.23,101.16,46.05442975]
[1646251597978,55.4572503,101.23,101.16,46.05442975]
[1646251598179,55.4572503,101.23,101.16,46.30442975]
[1646251600084,43.4572503,101.23,101.16,46.30442975]
[1646251602284,43.4572503,101.23,101.16,46.05442975]
[1646251604085,43.4572503,101.23,101.16,46.30442975]
[1646251604284,18.785,101.23,101.16,46.30442975]
[1646251611001,23.039,101.27,101.17,67.68176438]
[1646251611002,1.75488749,101.27,101.17,67.68176438]
[1646251611195,24.2025,101.27,101.18,26.22433975]
[1646251611397,23.9447,101.3,101.18,38.47433975]
[1646251611597,3.951,101.29,101.18,38.47433975]
[1646251612813,24.56843495,101.29,101.18,38.47433975]
[1646251613013,14.8275,101.27,101.18,38.47433975]
[1646251613213,3.951,101.26,101.18,24.3924]
[1646251613613,3.951,101.27,101.18,24.1424]
[1646251614113,24.56843495,101.27,101.18,24.1424]
[1646251614611,23.4517,101.26,101.18,24.1424]
[1646251614812,3.951,101.25,101.18,24.1424]
[1646251615013,18.7816,101.25,101.18,24.3924]
[1646251615612,14.8306,101.25,101.18,24.3924]
[1646251615812,23.4517,101.26,101.18,26.77531635]
[1646251616113,3.951,101.27,101.18,26.77531635]
[1646251616114,18.7786,101.27,101.18,200.55435638]
[1646251616312,9.10091278,101.3,101.2,159.23]
[1646251616512,3.951,101.3,101.22,218.519554]
[1646251616713,24.311,101.32,101.22,218.519554]
[1646251616714,3.95,101.31,101.22,74.359554]
[1646251616912,3.95,101.31,101.22,57.3025759]
[1646251617112,14.8241,101.29,101.22,57.3025759]
[1646251617312,3.95,101.31,101.23,23.1088]
[1646251617715,24.56743495,101.31,101.23,23.1088]
[1646251617913,19.65643429,101.3,101.22,57.0525759]
[1646251618113,3.95,101.29,101.22,57.0525759]
[1646251618713,24.56743495,101.29,101.22,57.0525759]
[1646251619115,14.8259,101.28,101.22,57.0525759]
[1646251619315,3.95,101.27,101.22,57.0525759]
[1646251619515,3.95,101.28,101.21,23.0394]
[1646251619915,26.9992,101.28,101.21,23.0394]
[1646251620118,47.61663495,101.28,101.19,23.727]
[1646251620320,14.8274,101.27,101.19,23.727]
[1646251620516,3.951,101.26,101.19,74.60831534]
[1646251620718,27.101,101.26,101.19,74.60831534]
[1646251621416,14.8317,101.24,101.17,3.951]
[1646251621616,3.952,101.23,101.17,3.951]
[1646251621816,15.952,101.23,101.17,3.951]
[1646251622015,22.266,101.23,101.17,3.951]
[1646251622216,43.18676828,101.23,101.17,3.951]
[1646251622619,44.94165577,101.23,101.17,3.951]
[1646251622819,40.98965577,101.23,101.17,3.951]
[1646251623017,14.8378,101.22,101.17,3.951]
[1646251623317,26.8378,101.22,101.17,3.951]
[1646251624718,14.8378,101.22,101.17,3.951]
[1646251624918,41.5507,101.24,101.15,48.22541447]
[1646251625118,41.5507,101.24,101.15,48.47541447]
[1646251625517,3.952,101.23,101.16,24.9506]
[1646251625720,3.952,101.23,101.16,25.2006]
[1646251626320,37.5987,101.24,101.16,25.2006]
[1646251626520,37.5987,101.24,101.16,30.2006]
[1646251629620,3.952,101.23,101.16,30.2006]
[1646251629821,3.952,101.23,101.16,25.2006]
[1646251630022,37.5987,101.24,101.16,25.2006]
[1646251633026,41.5507,101.24,101.16,24.9506]
[1646251633225,14.8357,101.21,101.16,24.9506]
[1646251634223,12.0,101.26,101.18,61.82635299]
[1646251634424,12.0,101.28,101.19,60.52865612]
[1646251634626,54.17710635,101.3,101.2,22.7499]
[1646251634829,5.0,101.29,101.21,6.0]
[1646251635027,8.95,101.29,101.22,56.88781617]
[1646251635227,3.95,101.33,101.22,73.77705697]
[1646251635428,3.95,101.33,101.22,56.88781617]
[1646251635632,48.88718927,101.33,101.22,56.88781617]
[1646251635829,20.77109833,101.32,101.22,56.88781617]
[1646251636031,14.8264,101.28,101.22,56.88781617]
[1646251636230,3.95,101.27,101.22,56.88781617]
[1646251637035,14.8264,101.28,101.22,57.13781617]
[1646251638441,28.7669,101.3,101.22,57.13781617]
[1646251639037,24.8169,101.3,101.22,59.34169978]
[1646251640039,39.6412,101.3,101.22,59.34169978]
[1646251640239,39.6412,101.3,101.22,57.13781617]
[1646251640441,39.6412,101.3,101.22,79.66801617]
[1646251640641,24.8169,101.3,101.22,79.66801617]
[1646251642045,14.8247,101.29,101.22,79.66801617]
[1646251644250,18.7747,101.29,101.22,79.66801617]
[1646251645250,18.7747,101.29,101.23,6.0]
[1646251645453,18.7747,101.29,101.24,54.78104227]
[1646251646674,14.8261,101.28,101.24,54.78104227]
[1646251646875,14.8261,101.28,101.22,22.5302]
[1646251647675,14.8261,101.28,101.22,22.7802]
[1646251647876,14.8261,101.28,101.23,53.46102018]
[1646251655481,90.193,101.3,101.23,53.46102018]
[1646251655683,5.15043534,101.31,101.23,53.71102018]
[1646251655887,50.24031941,101.35,101.23,53.71102018]
[1646251655888,24.4388,101.35,101.25,59.81205784]
[1646251656084,5.0,101.34,101.26,26.96221412]
[1646251656288,5.0,101.34,101.27,49.91832425]
[1646251656485,5.0,101.34,101.27,50.16832425]
[1646251657487,3.948,101.33,101.27,50.16832425]
[1646251657685,44.93225902,101.35,101.27,49.91832425]
[1646251657686,3.948,101.34,101.27,49.91832425]
[1646251658486,24.44145902,101.34,101.27,49.91832425]
[1646251659086,14.8209,101.32,101.27,49.91832425]
[1646251659486,36.44145902,101.34,101.27,49.91832425]
[1646251659894,36.44145902,101.34,101.23,25.9451]
[1646251660088,36.44145902,101.34,101.24,22.6222]
[1646251660288,36.44145902,101.34,101.24,22.8722]
[1646251660490,14.8222,101.31,101.24,22.8722]
[1646251660690,53.3553,101.34,101.24,22.8722]
[1646251660889,24.8121,101.33,101.25,45.37597501]
[1646251661089,24.8121,101.33,101.25,45.62597501]
[1646251661990,39.6321,101.33,101.25,45.62597501]
[1646251662192,39.6321,101.33,101.26,22.785]
[1646251662390,39.6321,101.33,101.27,48.81280928]
[1646251665593,39.6321,101.33,101.27,51.0215803]
[1646251667097,24.8121,101.33,101.27,51.0215803]
[1646251667295,43.204,101.35,101.27,51.0215803]
[1646251667495,39.256,101.35,101.27,51.0215803]
[1646251668095,39.256,101.35,101.29,60.75269827]
[1646251668296,39.256,101.35,101.29,61.00269827]
[1646251668795,39.256,101.35,101.29,60.75269827]
[1646251668998,14.8179,101.34,101.29,60.75269827]
[1646251671696,14.8189,101.33,101.29,60.75269827]
[1646251673303,14.8203,101.32,101.28,22.5891]
[1646251674206,14.8203,101.32,101.28,79.7476575]
[1646251674405,14.8203,101.32,101.23,50.74752288]
[1646251674608,14.8203,101.32,101.24,24.6135]
[1646251674806,14.8203,101.32,101.24,24.8635]
[1646251675005,14.8203,101.32,101.24,24.6135]
[1646251675407,14.8203,101.32,101.25,57.80453364]
[1646251676406,18.7664,101.34,101.25,57.80453364]
[1646251676606,14.8184,101.34,101.25,60.14716079]
[1646251676808,14.8184,101.34,101.27,52.08786691]
[1646251677007,14.8184,101.34,101.27,52.33786691]
[1646251678409,14.8184,101.34,101.27,54.24375966]
[1646251679412,3.948,101.35,101.27,54.24375966]
[1646251680033,3.948,101.35,101.29,51.70075866]
[1646251680233,3.948,101.35,101.29,51.95075866]
[1646251680635,18.7638,101.35,101.29,51.70075866]
[1646251680840,3.948,101.35,101.29,51.70075866]
[1646251681635,14.8187,101.33,101.29,51.70075866]
[1646251683338,3.948,101.35,101.23,57.40725692]
[1646251683541,12.0,101.34,101.24,29.5217]
[1646251683839,3.948,101.33,101.24,29.5217]
[1646251684138,40.55,101.33,101.24,29.5217]
[1646251684339,40.55,101.33,101.25,58.04510231]
[1646251685142,14.8234,101.3,101.25,58.29510231]
[1646251686343,14.8234,101.3,101.24,29.5217]
[1646251686541,14.8245,101.29,101.24,0.25]
[1646251687644,14.8245,101.29,101.24,56.51292021]
[1646251688942,14.8245,101.29,101.24,56.76292021]
[1646251689641,24.8673,101.3,101.24,56.76292021]
[1646251690744,39.6905,101.3,101.24,56.76292021]
[1646251691842,14.8232,101.3,101.24,56.76292021]
[1646251692445,61.7147,101.32,101.24,56.76292021]
[1646251692644,50.8417,101.32,101.25,25.03400618]
[1646251692850,46.8937,101.32,101.26,49.85880545]
[1646251693047,46.8937,101.32,101.26,50.10880545]
[1646251694347,23.1568,101.32,101.26,50.10880545]
[1646251694547,15.948,101.35,101.26,50.10880545]
[1646251694748,39.3237,101.35,101.28,46.97797099]
[1646251695049,14.8187,101.33,101.28,46.97797099]
[1646251697649,14.8187,101.33,101.28,47.22797099]
[1646251700953,14.8187,101.33,101.28,46.97797099]
[1646251701454,14.8201,101.32,101.27,23.0629]
[1646251701655,14.8201,101.32,101.27,23.3129]
[1646251702255,23.3757,101.35,101.28,53.22588746]
[1646251702454,23.3757,101.35,101.28,53.47588746]
[1646251703055,3.948,101.34,101.28,53.47588746]
[1646251705458,3.948,101.34,101.28,0.25]
[1646251705663,36.45012568,101.34,101.27,23.3129]
[1646251706459,3.948,101.34,101.28,57.4837546]
[1646251706660,3.948,101.34,101.28,57.7337546]
[1646251706859,27.3237,101.35,101.28,57.7337546]
[1646251707459,38.1919,101.35,101.28,57.7337546]
[1646251709062,14.8168,101.34,101.28,57.7337546]
[1646251710964,18.7648,101.34,101.28,57.7337546]
[1646251712067,3.948,101.34,101.27,23.0629]
[1646251712269,5.70464315,101.34,101.27,23.0629]
[1646251712468,17.70464315,101.34,101.26,23.6235]
[1646251712666,20.86543235,101.33,101.26,23.6235]
[1646251712865,3.948,101.32,101.24,22.5095]
[1646251713069,3.948,101.32,101.25,52.03647764]
[1646251713070,17.70464315,101.32,101.25,52.03647764]
[1646251713270,38.5700755,101.32,101.25,52.03647764]
[1646251713588,1.75664315,101.34,101.25,54.28956218]
[1646251713989,28.3757,101.35,101.27,48.79897747]
[1646251714189,23.3757,101.35,101.28,23.1776]
[1646251714390,14.8184,101.33,101.25,22.8012]
[1646251714600,3.948,101.34,101.26,23.1776]
[1646251714791,1.75664315,101.32,101.26,23.1776]
[1646251715004,5.70464315,101.32,101.26,23.1776]
[1646251715391,14.825,101.28,101.27,58.13485047]
[1646251715592,17.70464315,101.34,101.27,58.13485047]
[1646251715791,17.70464315,101.34,101.25,22.8012]
[1646251715792,5.70464315,101.34,101.25,22.8012]
[1646251715991,12.0,101.33,101.25,22.8012]
[1646251716191,3.948,101.32,101.25,22.8012]
[1646251716393,17.70464315,101.32,101.25,22.8012]
[1646251716590,1.75664315,101.31,101.25,22.8012]
[1646251716793,3.948,101.3,101.25,22.8012]
[1646251718093,14.8253,101.28,101.25,22.8012]
[1646251718292,14.8253,101.28,101.24,54.36841031]
[1646251720295,14.8253,101.28,101.23,24.6839]
[1646251720496,14.8253,101.28,101.23,24.9339]
[1646251721297,14.8253,101.28,101.24,55.76477836]
[1646251721800,43.3499,101.3,101.24,56.01477836]
[1646251722200,39.4019,101.3,101.24,56.01477836]
[1646251724301,14.8229,101.3,101.24,56.01477836]
[1646251724502,14.8229,101.3,101.24,58.06064248]
[1646251724702,37.3668,101.32,101.24,58.06064248]
[1646251724901,37.3668,101.32,101.26,55.63933517]
[1646251725103,37.3668,101.32,101.26,55.88933517]
[1646251728906,39.12344326,101.32,101.26,55.88933517]
[1646251729308,14.821,101.31,101.26,55.88933517]
[1646251729507,14.821,101.31,101.26,0.25]
[1646251729707,18.769,101.31,101.25,23.866]
[1646251729907,3.948,101.31,101.25,23.616]
[1646251730111,5.70464326,101.31,101.25,23.616]
[1646251731307,14.8251,101.28,101.24,23.7804]
[1646251731507,14.8251,101.28,101.23,23.8901]
[1646251732911,14.8251,101.28,101.23,24.1401]
[1646251733112,14.8251,101.28,101.23,23.8901]
[1646251733314,16.58174326,101.28,101.19,31.08118938]
[1646251733512,14.8289,101.26,101.19,30.88541951]
[1646251733713,14.8289,101.26,101.19,26.93541951]
[1646251734111,14.8289,101.26,101.2,59.54963591]
[1646251734310,14.8289,101.26,101.2,84.21713591]
[1646251734513,14.8289,101.26,101.2,84.46713591]
[1646251737721,14.8289,101.26,101.2,24.9175]
[1646251738017,18.7814,101.25,101.2,24.9175]
[1646251738220,14.8304,101.25,101.2,24.9175]
[1646251738616,14.8304,101.25,101.2,24.6675]
[1646251738817,3.951,101.24,101.16,112.9]
[1646251739018,27.2131,101.24,101.17,24.0175]
[1646251739841,27.2131,101.24,101.17,76.72558789]
[1646251740019,14.8339,101.22,101.17,76.97558789]
[1646251740419,14.8339,101.22,101.17,24.2675]
[1646251740621,14.8339,101.22,101.17,24.0175]
[1646251740821,3.952,101.21,101.17,24.0175]
[1646251741019,3.952,101.21,101.15,3.951]
[1646251742021,14.8379,101.2,101.15,3.951]
[1646251743222,14.8379,101.2,101.16,49.21740276]
[1646251743422,14.8379,101.2,101.15,3.951]
[1646251744024,14.8379,101.2,101.14,22.7863]
[1646251745121,14.8379,101.2,101.15,44.51841541]
[1646251747124,14.8379,101.2,101.14,22.7863]
[1646251748349,16.59450697,101.2,101.12,24.4162]
[1646251748648,14.8441,101.17,101.12,24.4162]
[1646251749046,18.7981,101.17,101.12,24.4162]
[1646251749247,20.55470697,101.17,101.12,24.4162]
[1646251751351,18.7981,101.17,101.13,59.33179541]
[1646251751549,14.8441,101.17,101.13,59.33179541]
[1646251751951,28.7778,101.19,101.13,59.33179541]
[1646251752152,24.8238,101.19,101.13,59.33179541]
[1646251753051,14.8405,101.18,101.13,59.33179541]
[1646251753650,24.8238,101.19,101.13,59.33179541]
[1646251753852,3.954,101.2,101.13,61.70562906]
[1646251754251,3.952,101.22,101.13,61.70562906]
[1646251755051,18.7875,101.22,101.13,61.70562906]
[1646251757555,1.75660697,101.23,101.13,79.08856909]
[1646251757759,1.75660697,101.22,101.14,24.6929422]
[1646251757955,1.75660697,101.22,101.15,47.41280144]
[1646251758155,47.5481,101.24,101.15,47.66280144]
[1646251758357,25.61108783,101.25,101.15,107.26280144]
[1646251758559,3.952,101.25,101.16,31.38838335]
[1646251758756,18.7835,101.25,101.17,60.55150329]
[1646251758956,18.7835,101.25,101.17,60.80150329]
[1646251759958,40.44258783,101.25,101.17,60.80150329]
[1646251761458,3.952,101.25,101.17,60.80150329]
[1646251761858,3.952,101.26,101.17,60.80150329]
[1646251762158,3.952,101.26,101.19,58.0229695]
[1646251762357,3.952,101.26,101.19,58.2729695]
[1646251763157,3.952,101.26,101.19,60.44006119]
[1646251763158,18.7808,101.26,101.19,60.44006119]
[1646251763458,3.952,101.26,101.19,60.44006119]
[1646251763658,3.951,101.27,101.19,60.44006119]
[1646251763858,3.951,101.28,101.19,60.44006119]
[1646251764057,21.3229945,101.29,101.19,75.26506119]
[1646251764058,3.951,101.29,101.19,75.26506119]
[1646251764661,3.951,101.29,101.21,52.61801479]
[1646251764958,3.951,101.29,101.21,52.86801479]
[1646251765461,48.6009,101.3,101.21,52.86801479]
[1646251765859,69.9238945,101.3,101.21,52.86801479]
[1646251766059,14.8246,101.29,101.21,52.86801479]
[1646251769564,3.95,101.28,101.21,52.86801479]
[1646251771264,14.8246,101.29,101.21,52.86801479]
[1646251771468,18.7761,101.28,101.21,52.86801479]
[1646251771865,18.7761,101.28,101.21,55.28558623]
[1646251772067,18.7761,101.28,101.21,52.86801479]
[1646251773966,14.8261,101.28,101.21,55.36461407]
[1646251787086,63.4247,101.3,101.21,55.36461407]
[1646251787390,3.95,101.3,101.23,120.97805262]
[1646251787586,1.75660697,101.31,101.23,121.22805262]
[1646251787788,1.75660697,101.31,101.25,45.42077549]
[1646251787987,5.70660697,101.32,101.25,45.67077549]
[1646251789006,20.52770697,101.32,101.25,45.67077549]
[1646251790512,18.7711,101.32,101.25,45.67077549]
[1646251795222,14.821,101.31,101.25,45.67077549]
[1646251795419,3.95,101.32,101.25,45.42077549]
[1646251795822,37.2729945,101.32,101.24,23.7349]
[1646251796019,37.2729945,101.32,101.24,23.9849]
[1646251796219,37.2729945,101.32,101.24,23.7349]
[1646251796419,14.8249,101.28,101.24,23.7349]
[1646251796822,21.6289,101.28,101.24,23.7349]
[1646251798022,14.8249,101.28,101.24,23.7349]
[1646251799522,14.8249,101.28,101.22,46.73497479]
[1646251799725,14.8249,101.28,101.22,70.27587479]
[1646251800323,14.8249,101.28,101.21,24.8256]
[1646251800525,5.70663856,101.27,101.17,3.95]
[1646251800726,14.8335,101.24,101.17,24.6585]
[1646251800924,21.9005,101.24,101.17,24.6585]
[1646251802526,21.9005,101.24,101.18,53.07303525]
[1646251802729,21.9005,101.24,101.18,53.32303525]
[1646251803528,21.9005,101.24,101.17,24.6585]
[1646251804527,21.9005,101.24,101.15,76.48962854]
[1646251804727,3.952,101.23,101.15,23.1096]
[1646251804931,14.8379,101.21,101.15,23.1096]
[1646251805126,3.952,101.2,101.15,23.1096]
[1646251805327,3.952,101.2,101.13,24.3652]
[1646251805927,14.8392,101.19,101.13,24.3652]
[1646251806730,14.8392,101.19,101.13,0.25]
[1646251806931,14.8392,101.19,101.12,57.69105343]
[1646251813143,41.4559,101.21,101.13,101.56700565]
[1646251813341,37.5019,101.21,101.13,26.47430565]
[1646251813743,37.5019,101.21,101.13,126.10430565]
[1646251814144,22.6652,101.21,101.13,126.10430565]
[1646251814964,22.6652,101.21,101.13,26.47430565]
[1646251815563,37.5014,101.21,101.13,26.47430565]
[1646251817364,22.6652,101.21,101.13,140.93820565]
[1646251817967,22.6652,101.21,101.13,41.30820565]
[1646251818865,18.7859,101.23,101.13,200.53820565]
[1646251819066,3.952,101.23,101.16,48.35973194]
[1646251819267,3.952,101.23,101.16,74.67748013]
[1646251819763,23.4295,101.24,101.16,72.74393194]
[1646251820866,38.2612,101.24,101.16,174.84920364]
[1646251821166,38.2612,101.24,101.16,75.21920364]
[1646251822667,23.4295,101.24,101.16,234.44920364]
[1646251822865,3.952,101.25,101.16,261.27850364]
[1646251823065,45.42987263,101.26,101.16,261.27850364]
[1646251824665,45.42987263,101.26,101.16,266.27850364]
[1646251825670,3.952,101.27,101.18,161.57680536]
[1646251825872,39.63960046,101.28,101.19,125.63082862]
[1646251826070,37.88292783,101.28,101.2,57.47402926]
[1646251826268,37.88292783,101.28,101.2,57.72402926]
[1646251829377,3.951,101.29,101.2,159.67619754]
[1646251829574,3.951,101.29,101.2,234.09979754]
[1646251829773,3.951,101.29,101.21,6.0]
[1646251829974,3.951,101.29,101.21,31.20960905]
[1646251832981,37.88082783,101.29,101.21,31.20960905]
[1646251833181,37.88082783,101.29,101.21,25.20960905]
[1646251837481,41.83082783,101.29,101.21,25.20960905]
[1646251838085,18.7745,101.29,101.21,25.20960905]
[1646251838282,14.8245,101.29,101.21,24.95960905]
[1646251838786,47.2331,101.3,101.21,199.01150905]
[1646251839185,3.95,101.29,101.21,199.01150905]
[1646251839584,3.95,101.29,101.21,199.26150905]
[1646251839985,3.95,101.29,101.21,201.81054908]
[1646251840186,37.87862783,101.31,101.23,161.4024352]
[1646251840385,3.95,101.32,101.24,219.68234427]
[1646251840586,3.948,101.33,101.26,99.63]
[1646251840787,3.948,101.33,101.26,101.87817119]
[1646251840985,3.948,101.35,101.26,101.87817119]
[1646251841194,3.948,101.35,101.27,24.2365]
[1646251841394,3.948,101.35,101.28,52.64894747]
[1646251841588,3.948,101.35,101.28,52.89894747]
[1646251841987,18.7646,101.35,101.28,52.89894747]
[1646251843290,14.8163,101.34,101.28,52.89894747]
[1646251843488,24.84892783,101.35,101.28,52.89894747]
[1646251844987,14.8177,101.33,101.28,52.89894747]
[1646251845688,14.8177,101.33,101.28,52.64894747]
[1646251845889,24.84892783,101.35,101.28,52.64894747]
[1646251846989,14.8189,101.32,101.28,52.64894747]
[1646251847190,14.8189,101.32,101.28,52.89894747]
[1646251847893,1.75667263,101.34,101.23,99.465]
[1646251848093,3.948,101.33,101.24,22.7968]
[1646251848292,1.75667263,101.32,101.24,22.7968]
[1646251848492,14.823,101.29,101.24,22.7968]
[1646251848695,14.823,101.29,101.25,59.99571407]
[1646251849694,24.6754,101.32,101.25,60.24571407]
[1646251850895,3.948,101.31,101.25,60.24571407]
[1646251851099,14.8218,101.3,101.25,60.24571407]
[1646251853901,3.948,101.31,101.25,60.24571407]
[1646251854201,39.4952,101.32,101.25,60.24571407]
[1646251858525,8.948,101.34,101.25,159.87571407]
[1646251858726,18.7653,101.34,101.26,23.7092]
[1646251858925,14.8173,101.34,101.26,23.9592]
[1646251859630,14.8177,101.33,101.26,23.9592]
[1646251861728,14.8191,101.32,101.26,23.9592]
[1646251862527,49.4029,101.34,101.26,23.7092]
[1646251862729,3.948,101.33,101.26,23.9592]
[1646251862928,3.948,101.33,101.26,23.7092]
[1646251863330,3.948,101.33,101.25,59.99571407]
[1646251863532,14.8222,101.3,101.25,59.99571407]
[1646251863732,14.8222,101.3,101.24,24.662]
[1646251864331,90.13857263,101.33,101.24,24.662]
[1646251864532,40.73137263,101.33,101.21,49.449]
[1646251864737,14.8254,101.28,101.22,23.782]
[1646251866533,14.8254,101.28,101.22,24.032]
[1646251872350,78.91287263,101.3,101.22,125.54176838]
[1646251872351,38.6073,101.3,101.22,125.54176838]
[1646251872740,38.6073,101.3,101.22,25.91176838]
[1646251873143,38.6073,101.3,101.22,125.54176838]
[1646251873342,38.6073,101.3,101.22,25.91176838]
[1646251873543,23.7844,101.3,101.23,6.0]
[1646251873745,23.7844,101.3,101.23,6.25]
[1646251874243,23.7844,101.3,101.23,0.25]
[1646251874446,3.95,101.29,101.23,0.25]
[1646251874946,3.95,101.29,101.22,24.032]
[1646251875446,14.8254,101.28,101.22,24.032]
[1646251877749,14.8254,101.28,101.22,0.25]
[1646251878046,14.8254,101.28,101.21,83.65982556]
[1646251881155,27.7344,101.3,101.21,86.09637211]
[1646251881354,42.5578,101.3,101.22,26.42891154]
[1646251881555,23.7844,101.3,101.22,26.67891154]
[1646251882755,23.7844,101.3,101.22,38.67891154]
[1646251882959,23.7844,101.3,101.22,36.4436]
[1646251883155,3.95,101.29,101.22,24.4436]
[1646251883955,14.8253,101.28,101.22,24.1936]
[1646251884155,14.8253,101.28,101.18,12.0]
[1646251884357,27.3935,101.27,101.19,22.5681]
[1646251885156,27.3935,101.27,101.19,72.12639354]
[1646251885560,27.3935,101.27,101.19,72.37639354]
[1646251886158,14.8306,101.25,101.19,72.37639354]
[1646251886562,14.8306,101.25,101.19,0.25]
[1646251886859,14.8306,101.25,101.17,23.5445]
[1646251886860,0.03143549,101.19,101.17,23.5445]
[1646251887458,0.03143549,101.19,101.16,145.23623912]
[1646251887659,0.03143549,101.19,101.16,23.0994]
[1646251887858,0.03143549,101.19,101.13,112.9]
[1646251888659,0.03143549,101.19,101.14,45.02459778]
[1646251889061,14.87033549,101.19,101.14,0.25]
[1646251889263,14.87033549,101.19,101.13,113.15]
[1646251890184,14.87033549,101.19,101.13,171.26724094]
[1646251892184,0.00874931,101.19,101.13,171.26724094]
[1646251892986,0.00874931,101.19,101.13,58.36724094]
[1646251893386,14.84734931,101.19,101.12,48.2479]
[1646251894388,14.84734931,101.19,101.12,96.9614495]
[1646251895188,14.84734931,101.19,101.12,97.2114495]
[1646251898890,14.84734931,101.19,101.12,99.29923675]
[1646251899091,14.84734931,101.19,101.12,99.1389278]
[1646251900091,14.84734931,101.19,101.12,97.2114495]
[1646251900292,14.84734931,101.19,101.12,96.9614495]
[1646251900491,14.84734931,101.19,101.12,48.7135495]
[1646251901197,3.954,101.18,101.12,48.7135495]
[1646251901395,14.8424,101.17,101.12,48.7135495]
[1646251901594,14.8424,101.17,101.1,24.8795]
[1646251901795,14.8424,101.17,101.1,25.1295]
[1646251902597,14.8424,101.17,101.11,42.81286126]
[1646251902798,14.8424,101.17,101.11,43.06286126]
[1646251903200,14.8424,101.17,101.1,24.8795]
[1646251903398,14.8424,101.17,101.1,25.1295]
[1646251904200,14.8424,101.17,101.1,24.8795]
[1646251904801,3.955,101.16,101.09,24.3625]
[1646251905002,26.8474,101.15,101.09,24.3625]
[1646251905200,26.8474,101.15,101.07,28.1578]
[1646251906202,31.8474,101.15,101.07,28.1578]
[1646251906405,31.8474,101.15,101.07,28.4078]
[1646251907105,26.8474,101.15,101.07,28.4078]
[1646251907303,31.8474,101.15,101.07,28.4078]
[1646251907703,14.8474,101.15,101.07,24.4538]
[1646251908303,3.956,101.14,101.07,24.4538]
[1646251908506,18.8023,101.14,101.07,24.4538]
[1646251908703,3.956,101.15,101.07,124.0838]
[1646251908906,27.5946,101.17,101.07,160.69696331]
[1646251909204,3.956,101.17,101.08,161.37820158]